[Event "January 2 Early 2024"]
[Site "https://www.chess.com"]
[Date "2024.01.02"]
[Round "4"]
[White "knightmareprodigy"]
[Black "Rustemov, Alexander"]
[Result "0-1"]
[Board "34"]
[TimeControl "180+1"]
[BlackFideId "4119002"]
[WhiteElo "2313"]
[BlackElo "2852"]
[BlackTeam "RUS"]
[WhiteClock "0:00:00"]
[BlackClock "0:00:36"]

1. Nf3 {[%clk 0:03:00]}  d5 {[%clk 0:02:59]} 2. e3 {[%clk 0:03:00]}  c6 {[%clk 0:02:59]} 3. c4 {[%clk 0:02:59]}  Nf6 {[%clk 0:02:59]} 4. Qc2 {[%clk 0:02:57]}  e6 {[%clk 0:02:54]} 5. b3 {[%clk 0:02:55]}  Bd6 {[%clk 0:02:50]} 6. Bb2 {[%clk 0:02:53]}  O-O {[%clk 0:02:49]} 7. Rg1 {[%clk 0:02:33]}  Qe7 {[%clk 0:02:31]} 8. g4 {[%clk 0:02:26]}  e5 {[%clk 0:02:31]} 9. g5 {[%clk 0:02:20]}  Ne4 {[%clk 0:02:31]} 10. h4 {[%clk 0:01:38]}  Na6 {[%clk 0:02:21]} 11. a3 {[%clk 0:01:35]}  Bf5 {[%clk 0:02:14]} 12. d3 {[%clk 0:01:23]}  Nec5 {[%clk 0:02:10]} 13. Nbd2 {[%clk 0:01:20]}  Rfe8 {[%clk 0:01:58]} 14. h5 {[%clk 0:01:12]}  Rad8 {[%clk 0:01:56]} 15. e4 {[%clk 0:01:08]}  dxe4 {[%clk 0:01:47]} 16. dxe4 {[%clk 0:01:06]}  Bc8 {[%clk 0:01:47]} 17. g6 {[%clk 0:00:58]}  fxg6 {[%clk 0:01:43]} 18. hxg6 {[%clk 0:00:58]}  h6 {[%clk 0:01:43]} 19. b4 {[%clk 0:00:55]}  Ne6 {[%clk 0:01:43]} 20. c5 {[%clk 0:00:55]}  Bc7 {[%clk 0:01:39]} 21. Nxe5 {[%clk 0:00:41]}  Nd4 {[%clk 0:01:17]} 22. Bxd4 {[%clk 0:00:35]}  Rxd4 {[%clk 0:01:18]} 23. Bc4+ {[%clk 0:00:31]}  Kf8 {[%clk 0:01:16]} 24. Nef3 {[%clk 0:00:28]}  Rdd8 {[%clk 0:01:11]} 25. O-O-O {[%clk 0:00:24]}  Bf4 {[%clk 0:01:08]} 26. Kb1 {[%clk 0:00:22]}  b6 {[%clk 0:01:07]} 27. cxb6 {[%clk 0:00:20]}  axb6 {[%clk 0:01:08]} 28. e5 {[%clk 0:00:20]}  b5 {[%clk 0:01:07]} 29. Bb3 {[%clk 0:00:19]}  c5 {[%clk 0:01:07]} 30. Ne4 {[%clk 0:00:12]}  c4 {[%clk 0:01:03]} 31. Nd6 {[%clk 0:00:08]}  cxb3 {[%clk 0:00:59]} 32. Qe4 {[%clk 0:00:08]}  Bxe5 {[%clk 0:00:54]} 33. Nxe5 {[%clk 0:00:07]}  Qxe5 {[%clk 0:00:50]} 34. Qf3+ {[%clk 0:00:07]}  Qf6 {[%clk 0:00:50]} 35. Qxf6+ {[%clk 0:00:06]}  gxf6 {[%clk 0:00:51]} 36. g7+ {[%clk 0:00:06]}  Kg8 {[%clk 0:00:50]} 37. Nxe8 {[%clk 0:00:06]}  Rxe8 {[%clk 0:00:50]} 38. Kb2 {[%clk 0:00:05]}  Be6 {[%clk 0:00:47]} 39. Rde1 {[%clk 0:00:05]}  Nc7 {[%clk 0:00:46]} 40. Rg6 {[%clk 0:00:03]}  Kf7 {[%clk 0:00:43]} 41. g8=Q+ {[%clk 0:00:01]}  Rxg8 {[%clk 0:00:42]} 42. Rxg8 {[%clk 0:00:01]}  Kxg8 {[%clk 0:00:42]} 43. Rc1 {[%clk 0:00:00]}  Ne8 {[%clk 0:00:36]} 0-1

[Event "January 2 Early 2024"]
[Site "https://www.chess.com"]
[Date "2024.01.02"]
[Round "4"]
[White "Niedbala, Bartlomiej"]
[Black "Firouzja, Alireza"]
[Result "0-1"]
[Board "36"]
[TimeControl "180+1"]
[WhiteFideId "21834008"]
[BlackFideId "12573981"]
[WhiteElo "2627"]
[BlackElo "3147"]
[WhiteTeam "POL"]
[BlackTeam "FRA"]
[WhiteClock "0:00:05"]
[BlackClock "0:01:48"]

1. e4 {[%clk 0:01:17]}  c5 {[%clk 0:02:59]} 2. Nf3 {[%clk 0:01:17]}  d6 {[%clk 0:02:59]} 3. d4 {[%clk 0:01:17]}  cxd4 {[%clk 0:02:59]} 4. Nxd4 {[%clk 0:01:18]}  Nf6 {[%clk 0:02:59]} 5. Nc3 {[%clk 0:01:19]}  a6 {[%clk 0:02:59]} 6. f4 {[%clk 0:01:20]}  Qc7 {[%clk 0:02:58]} 7. f5 {[%clk 0:01:20]}  g6 {[%clk 0:02:57]} 8. Be3 {[%clk 0:01:16]}  Bg7 {[%clk 0:02:57]} 9. Be2 {[%clk 0:01:15]}  Nbd7 {[%clk 0:02:56]} 10. g4 {[%clk 0:01:09]}  Nc5 {[%clk 0:02:37]} 11. Bf3 {[%clk 0:01:09]}  Qa5 {[%clk 0:02:20]} 12. Qd2 {[%clk 0:01:03]}  h5 {[%clk 0:02:08]} 13. g5 {[%clk 0:00:58]}  Ng4 {[%clk 0:02:08]} 14. Bg1 {[%clk 0:00:51]}  Ne5 {[%clk 0:02:07]} 15. Be2 {[%clk 0:00:50]}  Bd7 {[%clk 0:02:07]} 16. a3 {[%clk 0:00:48]}  Na4 {[%clk 0:02:06]} 17. Nxa4 {[%clk 0:00:44]}  Qxd2+ {[%clk 0:02:06]} 18. Kxd2 {[%clk 0:00:45]}  Bxa4 {[%clk 0:02:06]} 19. b3 {[%clk 0:00:46]}  Bc6 {[%clk 0:02:04]} 20. Bd3 {[%clk 0:00:39]}  Nf3+ {[%clk 0:02:02]} 21. Nxf3 {[%clk 0:00:35]}  Bxa1 {[%clk 0:02:02]} 22. c3 {[%clk 0:00:25]}  gxf5 {[%clk 0:02:03]} 23. Nd4 {[%clk 0:00:23]}  fxe4 {[%clk 0:02:00]} 24. Nxc6 {[%clk 0:00:19]}  exd3 {[%clk 0:01:58]} 25. Nb4 {[%clk 0:00:15]}  Bb2 {[%clk 0:01:58]} 26. Nxd3 {[%clk 0:00:12]}  Bxa3 {[%clk 0:01:58]} 27. b4 {[%clk 0:00:11]}  a5 {[%clk 0:01:59]} 28. b5 {[%clk 0:00:11]}  O-O-O {[%clk 0:01:56]} 29. Bb6 {[%clk 0:00:10]}  Rd7 {[%clk 0:01:54]} 30. Ra1 {[%clk 0:00:10]}  Bc5 {[%clk 0:01:54]} 31. Bxa5 {[%clk 0:00:09]}  Kb8 {[%clk 0:01:52]} 32. c4 {[%clk 0:00:08]}  Bd4 {[%clk 0:01:52]} 33. Ra4 {[%clk 0:00:08]}  b6 {[%clk 0:01:48]} 34. Bb4 {[%clk 0:00:08]}  Ra7 {[%clk 0:01:48]} 35. Rxa7 {[%clk 0:00:08]}  Kxa7 {[%clk 0:01:49]} 36. Nf4 {[%clk 0:00:09]}  Be5 {[%clk 0:01:47]} 37. Nd5 {[%clk 0:00:05]}  e6 {[%clk 0:01:48]} 0-1

[Event "January 2 Early 2024"]
[Site "https://www.chess.com"]
[Date "2024.01.02"]
[Round "4"]
[White "Martinez Alcantara, Jose Eduardo"]
[Black "Tregubov, Pavel V."]
[Result "1-0"]
[Board "38"]
[TimeControl "180+1"]
[WhiteFideId "3805662"]
[BlackFideId "4115341"]
[WhiteElo "3061"]
[BlackElo "2635"]
[WhiteTeam "PER"]
[BlackTeam "FRA"]
[WhiteClock "0:01:52"]
[BlackClock "0:00:42"]

1. e4 {[%clk 0:03:00]}  c5 {[%clk 0:02:59]} 2. Nf3 {[%clk 0:03:01]}  e6 {[%clk 0:02:59]} 3. c3 {[%clk 0:03:01]}  d5 {[%clk 0:02:59]} 4. e5 {[%clk 0:03:02]}  Nc6 {[%clk 0:02:58]} 5. g3 {[%clk 0:03:01]}  f6 {[%clk 0:02:48]} 6. d4 {[%clk 0:02:52]}  fxe5 {[%clk 0:02:29]} 7. dxe5 {[%clk 0:02:53]}  Nge7 {[%clk 0:02:30]} 8. Qe2 {[%clk 0:02:52]}  Qc7 {[%clk 0:02:20]} 9. Na3 {[%clk 0:02:48]}  a6 {[%clk 0:02:19]} 10. Bg2 {[%clk 0:02:48]}  Ng6 {[%clk 0:02:18]} 11. O-O {[%clk 0:02:46]}  Ngxe5 {[%clk 0:02:08]} 12. Nxe5 {[%clk 0:02:39]}  Qxe5 {[%clk 0:02:05]} 13. Qd1 {[%clk 0:02:25]}  Be7 {[%clk 0:02:00]} 14. Bf4 {[%clk 0:02:11]}  Qf6 {[%clk 0:01:59]} 15. Qh5+ {[%clk 0:02:12]}  Qf7 {[%clk 0:01:55]} 16. Qe2 {[%clk 0:02:10]}  O-O {[%clk 0:01:53]} 17. Rad1 {[%clk 0:02:10]}  Bd7 {[%clk 0:01:48]} 18. Nc4 {[%clk 0:02:08]}  Nd4 {[%clk 0:01:27]} 19. cxd4 {[%clk 0:02:05]}  Bb5 {[%clk 0:01:27]} 20. b3 {[%clk 0:02:02]}  dxc4 {[%clk 0:01:27]} 21. bxc4 {[%clk 0:02:03]}  Ba4 {[%clk 0:01:28]} 22. d5 {[%clk 0:01:53]}  Bxd1 {[%clk 0:01:23]} 23. Rxd1 {[%clk 0:01:54]}  e5 {[%clk 0:00:42]} 24. d6 {[%clk 0:01:52]} 1-0

[Event "January 2 Early 2024"]
[Site "https://www.chess.com"]
[Date "2024.01.02"]
[Round "4"]
[White "Mirzoev, Azer"]
[Black "Iturrizaga Bonelli, Eduardo"]
[Result "0-1"]
[Board "40"]
[TimeControl "180+1"]
[WhiteFideId "13400304"]
[BlackFideId "3901211"]
[WhiteElo "2631"]
[BlackElo "3016"]
[WhiteTeam "AZE"]
[BlackTeam "ESP"]
[WhiteClock "0:00:00"]
[BlackClock "0:00:03"]

1. c4 {[%clk 0:02:59]}  Nf6 {[%clk 0:02:59]} 2. Nc3 {[%clk 0:02:59]}  c5 {[%clk 0:03:00]} 3. g3 {[%clk 0:02:59]}  Nc6 {[%clk 0:02:59]} 4. Bg2 {[%clk 0:02:59]}  d6 {[%clk 0:02:55]} 5. Nf3 {[%clk 0:02:58]}  g6 {[%clk 0:02:44]} 6. O-O {[%clk 0:02:51]}  Bg7 {[%clk 0:02:44]} 7. d3 {[%clk 0:02:51]}  O-O {[%clk 0:02:44]} 8. Bg5 {[%clk 0:02:52]}  Rb8 {[%clk 0:02:43]} 9. a3 {[%clk 0:02:50]}  a6 {[%clk 0:02:43]} 10. Rb1 {[%clk 0:02:50]}  b5 {[%clk 0:02:44]} 11. cxb5 {[%clk 0:02:51]}  axb5 {[%clk 0:02:45]} 12. b4 {[%clk 0:02:51]}  cxb4 {[%clk 0:02:38]} 13. axb4 {[%clk 0:02:52]}  Be6 {[%clk 0:02:38]} 14. Qd2 {[%clk 0:02:48]}  Qd7 {[%clk 0:02:38]} 15. Bh6 {[%clk 0:02:47]}  Rfc8 {[%clk 0:02:39]} 16. Bxg7 {[%clk 0:02:48]}  Kxg7 {[%clk 0:02:40]} 17. Rfc1 {[%clk 0:02:47]}  h6 {[%clk 0:02:37]} 18. h4 {[%clk 0:02:47]}  Qa7 {[%clk 0:02:22]} 19. Qb2 {[%clk 0:02:40]}  Kg8 {[%clk 0:02:11]} 20. Ne4 {[%clk 0:02:37]}  Nxe4 {[%clk 0:02:09]} 21. dxe4 {[%clk 0:02:37]}  Bc4 {[%clk 0:02:09]} 22. e5 {[%clk 0:02:35]}  dxe5 {[%clk 0:01:56]} 23. Nxe5 {[%clk 0:02:35]}  Nd4 {[%clk 0:01:52]} 24. Bf1 {[%clk 0:02:07]}  Nf5 {[%clk 0:01:07]} 25. Ra1 {[%clk 0:01:45]}  Qd4 {[%clk 0:01:00]} 26. Rcb1 {[%clk 0:01:02]}  Rb6 {[%clk 0:00:41]} 27. e3 {[%clk 0:00:53]}  Qxb2 {[%clk 0:00:24]} 28. Rxb2 {[%clk 0:00:54]}  Bxf1 {[%clk 0:00:24]} 29. Kxf1 {[%clk 0:00:53]}  Rd6 {[%clk 0:00:23]} 30. Ra7 {[%clk 0:00:49]}  Rd5 {[%clk 0:00:20]} 31. Nd7 {[%clk 0:00:44]}  Rc1+ {[%clk 0:00:15]} 32. Kg2 {[%clk 0:00:43]}  Rdd1 {[%clk 0:00:13]} 33. Nc5 {[%clk 0:00:40]}  g5 {[%clk 0:00:11]} 34. hxg5 {[%clk 0:00:39]}  hxg5 {[%clk 0:00:12]} 35. Kf3 {[%clk 0:00:39]}  e6 {[%clk 0:00:12]} 36. Ne4 {[%clk 0:00:34]}  g4+ {[%clk 0:00:03]} 37. Kxg4 {[%clk 0:00:32]}  Kg7 {[%clk 0:00:03]} 38. Ng5 {[%clk 0:00:29]}  Nh6+ {[%clk 0:00:04]} 39. Kf3 {[%clk 0:00:28]}  Kg6 {[%clk 0:00:04]} 40. Nh3 {[%clk 0:00:26]}  e5 {[%clk 0:00:04]} 41. Rba2 {[%clk 0:00:23]}  f6 {[%clk 0:00:03]} 42. R7a6 {[%clk 0:00:15]}  Rh1 {[%clk 0:00:03]} 43. Kg2 {[%clk 0:00:13]}  Ng4 {[%clk 0:00:04]} 44. Rb6 {[%clk 0:00:12]}  Rh2+ {[%clk 0:00:04]} 45. Kf3 {[%clk 0:00:12]}  Kh5 {[%clk 0:00:02]} 46. Nf4+ {[%clk 0:00:08]}  exf4 {[%clk 0:00:02]} 47. Rxb5+ {[%clk 0:00:08]}  Ne5+ {[%clk 0:00:02]} 48. Kxf4 {[%clk 0:00:08]}  Rc4+ {[%clk 0:00:03]} 49. Kf5 {[%clk 0:00:08]}  Kh6 {[%clk 0:00:02]} 50. Kxf6 {[%clk 0:00:07]}  Ng4+ {[%clk 0:00:03]} 51. Kf5 {[%clk 0:00:00]}  Rh5+ {[%clk 0:00:03]} 0-1

[Event "January 2 Early 2024"]
[Site "https://www.chess.com"]
[Date "2024.01.02"]
[Round "4"]
[White "Movahed, Sina"]
[Black "Munoz Galvez, Jhon Edison"]
[Result "1-0"]
[Board "41"]
[TimeControl "180+1"]
[WhiteFideId "42520835"]
[BlackFideId "4403797"]
[WhiteElo "3000"]
[BlackElo "2627"]
[WhiteTeam "IRI"]
[BlackTeam "COL"]
[WhiteClock "0:00:42"]
[BlackClock "0:00:10"]

1. Nf3 {[%clk 0:03:00]}  Nf6 {[%clk 0:02:57]} 2. c4 {[%clk 0:03:01]}  c5 {[%clk 0:02:56]} 3. Nc3 {[%clk 0:02:58]}  g6 {[%clk 0:02:56]} 4. e4 {[%clk 0:02:57]}  Nc6 {[%clk 0:02:56]} 5. d4 {[%clk 0:02:57]}  cxd4 {[%clk 0:02:56]} 6. Nxd4 {[%clk 0:02:57]}  Bg7 {[%clk 0:02:56]} 7. Be3 {[%clk 0:02:53]}  O-O {[%clk 0:02:55]} 8. Be2 {[%clk 0:02:52]}  d6 {[%clk 0:02:54]} 9. O-O {[%clk 0:02:49]}  Bd7 {[%clk 0:02:54]} 10. Nc2 {[%clk 0:02:38]}  Rc8 {[%clk 0:02:45]} 11. Rc1 {[%clk 0:02:38]}  Ne5 {[%clk 0:02:19]} 12. Na3 {[%clk 0:02:12]}  Qa5 {[%clk 0:02:09]} 13. Nd5 {[%clk 0:01:47]}  Nxd5 {[%clk 0:02:04]} 14. exd5 {[%clk 0:01:48]}  Ba4 {[%clk 0:01:47]} 15. b3 {[%clk 0:01:46]}  Be8 {[%clk 0:01:39]} 16. Nc2 {[%clk 0:01:45]}  Qxa2 {[%clk 0:01:24]} 17. Ra1 {[%clk 0:01:08]}  Qxb3 {[%clk 0:01:17]} 18. Ra3 {[%clk 0:01:06]}  Qb2 {[%clk 0:00:42]} 19. Bd4 {[%clk 0:01:06]}  Nf3+ {[%clk 0:00:20]} 20. Rxf3 {[%clk 0:01:04]}  Bxd4 {[%clk 0:00:19]} 21. Nxd4 {[%clk 0:01:02]}  Qb6 {[%clk 0:00:16]} 22. Qd2 {[%clk 0:00:57]}  a6 {[%clk 0:00:15]} 23. Rb3 {[%clk 0:00:55]}  Qc7 {[%clk 0:00:15]} 24. Qh6 {[%clk 0:00:54]}  Bd7 {[%clk 0:00:15]} 25. g4 {[%clk 0:00:41]}  f6 {[%clk 0:00:14]} 26. Ne6 {[%clk 0:00:41]}  Bxe6 {[%clk 0:00:10]} 27. dxe6 {[%clk 0:00:42]} 1-0

[Event "January 2 Early 2024"]
[Site "https://www.chess.com"]
[Date "2024.01.02"]
[Round "4"]
[White "Grycel, Kamil"]
[Black "Baskakov, Egor"]
[Result "0-1"]
[Board "46"]
[TimeControl "180+1"]
[WhiteFideId "1115499"]
[BlackFideId "24197866"]
[WhiteElo "2614"]
[BlackElo "2937"]
[WhiteTeam "POL"]
[BlackTeam "RUS"]
[WhiteClock "0:00:55"]
[BlackClock "0:02:25"]

1. d4 {[%clk 0:03:00]}  Nf6 {[%clk 0:02:59]} 2. Nf3 {[%clk 0:03:00]}  e6 {[%clk 0:03:00]} 3. Bf4 {[%clk 0:03:00]}  d5 {[%clk 0:03:01]} 4. e3 {[%clk 0:03:00]}  Be7 {[%clk 0:02:58]} 5. h3 {[%clk 0:02:58]}  O-O {[%clk 0:02:58]} 6. Nbd2 {[%clk 0:02:58]}  Ne4 {[%clk 0:02:58]} 7. Nxe4 {[%clk 0:02:53]}  dxe4 {[%clk 0:02:59]} 8. Nd2 {[%clk 0:02:54]}  f5 {[%clk 0:02:59]} 9. Bc4 {[%clk 0:02:53]}  Bd6 {[%clk 0:02:59]} 10. Bxd6 {[%clk 0:02:47]}  cxd6 {[%clk 0:03:00]} 11. Bb3 {[%clk 0:02:44]}  d5 {[%clk 0:03:00]} 12. g3 {[%clk 0:02:43]}  Nc6 {[%clk 0:03:01]} 13. c4 {[%clk 0:02:29]}  Nb4 {[%clk 0:02:58]} 14. Bc2 {[%clk 0:02:24]}  e5 {[%clk 0:02:50]} 15. a3 {[%clk 0:02:02]}  Nxc2+ {[%clk 0:02:48]} 16. Qxc2 {[%clk 0:02:03]}  exd4 {[%clk 0:02:49]} 17. exd4 {[%clk 0:02:03]}  f4 {[%clk 0:02:49]} 18. cxd5 {[%clk 0:01:51]}  e3 {[%clk 0:02:47]} 19. fxe3 {[%clk 0:01:51]}  fxe3 {[%clk 0:02:46]} 20. Nc4 {[%clk 0:01:42]}  Rf2 {[%clk 0:02:42]} 21. Qc3 {[%clk 0:01:39]}  Qxd5 {[%clk 0:02:35]} 22. O-O-O {[%clk 0:01:34]}  Bf5 {[%clk 0:02:28]} 23. Nxe3 {[%clk 0:01:29]}  Qa2 {[%clk 0:02:28]} 24. Qc4+ {[%clk 0:01:00]}  Qxc4+ {[%clk 0:02:27]} 25. Nxc4 {[%clk 0:01:00]}  Rc8 {[%clk 0:02:27]} 26. b3 {[%clk 0:00:57]}  Rc2+ {[%clk 0:02:25]} 27. Kb1 {[%clk 0:00:55]}  R2xc4+ {[%clk 0:02:25]} 0-1

[Event "January 2 Early 2024"]
[Site "https://www.chess.com"]
[Date "2024.01.02"]
[Round "4"]
[White "Manukian, Artak"]
[Black "Praggnanandhaa R"]
[Result "0-1"]
[Board "47"]
[TimeControl "180+1"]
[WhiteFideId "13301373"]
[BlackFideId "25059530"]
[WhiteElo "2610"]
[BlackElo "2935"]
[WhiteTeam "ARM"]
[BlackTeam "IND"]
[WhiteClock "0:00:00"]
[BlackClock "0:00:54"]

1. e4 {[%clk 0:03:00]}  e5 {[%clk 0:02:53]} 2. Nf3 {[%clk 0:02:59]}  Nc6 {[%clk 0:02:53]} 3. d4 {[%clk 0:02:59]}  exd4 {[%clk 0:02:53]} 4. Nxd4 {[%clk 0:03:00]}  Bc5 {[%clk 0:02:52]} 5. Nxc6 {[%clk 0:02:59]}  bxc6 {[%clk 0:02:51]} 6. Bc4 {[%clk 0:02:58]}  d6 {[%clk 0:02:49]} 7. Qh5 {[%clk 0:02:49]}  Qf6 {[%clk 0:02:46]} 8. O-O {[%clk 0:02:46]}  Qg6 {[%clk 0:02:46]} 9. Qxg6 {[%clk 0:02:38]}  hxg6 {[%clk 0:02:47]} 10. Nd2 {[%clk 0:02:21]}  Nf6 {[%clk 0:02:44]} 11. Nb3 {[%clk 0:02:20]}  Bb6 {[%clk 0:02:39]} 12. Bd3 {[%clk 0:02:13]}  Ng4 {[%clk 0:02:32]} 13. h3 {[%clk 0:02:09]}  Ne5 {[%clk 0:02:31]} 14. Bf4 {[%clk 0:01:53]}  f6 {[%clk 0:02:25]} 15. Rfd1 {[%clk 0:01:43]}  Nxd3 {[%clk 0:02:13]} 16. cxd3 {[%clk 0:01:42]}  g5 {[%clk 0:02:13]} 17. Bg3 {[%clk 0:01:39]}  Be6 {[%clk 0:02:08]} 18. d4 {[%clk 0:01:37]}  a5 {[%clk 0:01:57]} 19. d5 {[%clk 0:01:31]}  cxd5 {[%clk 0:01:55]} 20. exd5 {[%clk 0:01:32]}  Bf7 {[%clk 0:01:55]} 21. Rac1 {[%clk 0:01:14]}  Kd7 {[%clk 0:01:53]} 22. Nd4 {[%clk 0:01:05]}  a4 {[%clk 0:01:43]} 23. Nf5 {[%clk 0:00:47]}  g6 {[%clk 0:01:40]} 24. Ne3 {[%clk 0:00:46]}  f5 {[%clk 0:01:35]} 25. Nc4 {[%clk 0:00:40]}  Ba7 {[%clk 0:01:34]} 26. Kf1 {[%clk 0:00:20]}  f4 {[%clk 0:01:24]} 27. Bh2 {[%clk 0:00:20]}  Rab8 {[%clk 0:01:11]} 28. f3 {[%clk 0:00:15]}  Rb5 {[%clk 0:01:10]} 29. Bg1 {[%clk 0:00:14]}  Bxg1 {[%clk 0:01:10]} 30. Kxg1 {[%clk 0:00:15]}  Re8 {[%clk 0:01:07]} 31. Rd2 {[%clk 0:00:12]}  Rxd5 {[%clk 0:01:04]} 32. Rxd5 {[%clk 0:00:11]}  Bxd5 {[%clk 0:01:05]} 33. Kf2 {[%clk 0:00:12]}  Rb8 {[%clk 0:01:03]} 34. Na3 {[%clk 0:00:05]}  Rxb2+ {[%clk 0:01:03]} 35. Rc2 {[%clk 0:00:06]}  Rxc2+ {[%clk 0:01:03]} 36. Nxc2 {[%clk 0:00:07]}  Bxa2 {[%clk 0:01:03]} 37. Ke2 {[%clk 0:00:07]}  c5 {[%clk 0:01:03]} 38. Kd2 {[%clk 0:00:08]}  Kc6 {[%clk 0:01:03]} 39. Kc3 {[%clk 0:00:08]}  d5 {[%clk 0:01:03]} 40. Ne1 {[%clk 0:00:07]}  d4+ {[%clk 0:01:02]} 41. Kb2 {[%clk 0:00:07]}  Bc4 {[%clk 0:01:03]} 42. Nc2 {[%clk 0:00:07]}  Bf1 {[%clk 0:01:02]} 43. Na3 {[%clk 0:00:04]}  Bxg2 {[%clk 0:01:01]} 44. Nc4 {[%clk 0:00:05]}  Kb5 {[%clk 0:00:57]} 45. Ne5 {[%clk 0:00:04]}  c4 {[%clk 0:00:56]} 46. Nxg6 {[%clk 0:00:03]}  c3+ {[%clk 0:00:56]} 47. Kc1 {[%clk 0:00:04]}  a3 {[%clk 0:00:56]} 48. Kb1 {[%clk 0:00:00]}  d3 {[%clk 0:00:54]} 0-1

[Event "January 2 Early 2024"]
[Site "https://www.chess.com"]
[Date "2024.01.02"]
[Round "4"]
[White "Toman, Ondrej"]
[Black "Aravindh, Chithambaram VR."]
[Result "0-1"]
[Board "49"]
[TimeControl "180+1"]
[WhiteFideId "344516"]
[BlackFideId "5072786"]
[WhiteElo "2603"]
[BlackElo "2920"]
[WhiteTeam "CZE"]
[BlackTeam "IND"]
[WhiteClock "0:00:00"]
[BlackClock "0:00:05"]

1. d4 {[%clk 0:02:58]}  Nf6 {[%clk 0:02:58]} 2. Bg5 {[%clk 0:02:58]}  c5 {[%clk 0:02:57]} 3. d5 {[%clk 0:02:58]}  d6 {[%clk 0:02:57]} 4. Nc3 {[%clk 0:02:57]}  Nbd7 {[%clk 0:02:56]} 5. e4 {[%clk 0:02:57]}  g6 {[%clk 0:02:57]} 6. Nf3 {[%clk 0:02:56]}  Bg7 {[%clk 0:02:57]} 7. Nd2 {[%clk 0:02:56]}  O-O {[%clk 0:02:58]} 8. h3 {[%clk 0:02:53]}  a6 {[%clk 0:02:46]} 9. a4 {[%clk 0:02:53]}  h6 {[%clk 0:02:39]} 10. Be3 {[%clk 0:02:48]}  g5 {[%clk 0:02:12]} 11. Be2 {[%clk 0:02:39]}  Ne5 {[%clk 0:02:11]} 12. h4 {[%clk 0:02:29]}  Nfg4 {[%clk 0:01:30]} 13. Bxg5 {[%clk 0:02:01]}  hxg5 {[%clk 0:01:28]} 14. hxg5 {[%clk 0:02:01]}  Nxf2 {[%clk 0:01:21]} 15. Kxf2 {[%clk 0:02:00]}  e6 {[%clk 0:01:22]} 16. Rh5 {[%clk 0:01:42]}  Ng6 {[%clk 0:01:02]} 17. Nf3 {[%clk 0:01:34]}  c4 {[%clk 0:00:49]} 18. a5 {[%clk 0:01:27]}  Qc7 {[%clk 0:00:47]} 19. Qd2 {[%clk 0:01:13]}  b5 {[%clk 0:00:42]} 20. Rah1 {[%clk 0:00:59]}  b4 {[%clk 0:00:39]} 21. Nd1 {[%clk 0:00:58]}  c3 {[%clk 0:00:35]} 22. bxc3 {[%clk 0:00:56]}  bxc3 {[%clk 0:00:36]} 23. Qc1 {[%clk 0:00:42]}  Rb8 {[%clk 0:00:37]} 24. Nh4 {[%clk 0:00:33]}  Qc5+ {[%clk 0:00:27]} 25. Kf1 {[%clk 0:00:29]}  Rb2 {[%clk 0:00:19]} 26. Bf3 {[%clk 0:00:20]}  Bd7 {[%clk 0:00:17]} 27. Nf2 {[%clk 0:00:15]}  Bb5+ {[%clk 0:00:11]} 28. Ke1 {[%clk 0:00:12]}  Qb4 {[%clk 0:00:05]} 29. Bd1 {[%clk 0:00:08]}  exd5 {[%clk 0:00:04]} 30. Nf5 {[%clk 0:00:08]}  Re8 {[%clk 0:00:04]} 31. Qe3 {[%clk 0:00:05]}  d4 {[%clk 0:00:04]} 32. Qg3 {[%clk 0:00:04]}  d3 {[%clk 0:00:04]} 33. Nxd3 {[%clk 0:00:04]}  Qxe4+ {[%clk 0:00:05]} 34. Kf1 {[%clk 0:00:02]}  Qxf5+ {[%clk 0:00:05]} 35. Bf3 {[%clk 0:00:02]}  Rxc2 {[%clk 0:00:04]} 36. Kg1 {[%clk 0:00:02]}  Bxd3 {[%clk 0:00:05]} 37. Kh2 {[%clk 0:00:00]}  Be5 {[%clk 0:00:05]} 0-1

[Event "January 2 Early 2024"]
[Site "https://www.chess.com"]
[Date "2024.01.02"]
[Round "4"]
[White "Materia, Marco"]
[Black "Lund, Gunnar"]
[Result "1-0"]
[Board "54"]
[TimeControl "180+1"]
[WhiteFideId "45150451"]
[BlackFideId "1520814"]
[WhiteElo "2836"]
[BlackElo "2577"]
[WhiteTeam "FRA"]
[BlackTeam "NOR"]
[WhiteClock "0:00:21"]
[BlackClock "0:00:02"]

1. Nf3 {[%clk 0:03:00]}  d5 {[%clk 0:02:55]} 2. e3 {[%clk 0:03:00]}  Bg4 {[%clk 0:02:53]} 3. d4 {[%clk 0:02:58]}  e6 {[%clk 0:02:51]} 4. Be2 {[%clk 0:02:57]}  Nf6 {[%clk 0:02:51]} 5. O-O {[%clk 0:02:58]}  Be7 {[%clk 0:02:51]} 6. c4 {[%clk 0:02:58]}  O-O {[%clk 0:02:51]} 7. h3 {[%clk 0:02:58]}  Bxf3 {[%clk 0:02:51]} 8. Bxf3 {[%clk 0:02:58]}  c6 {[%clk 0:02:51]} 9. b3 {[%clk 0:02:57]}  Nbd7 {[%clk 0:02:50]} 10. Bb2 {[%clk 0:02:57]}  Re8 {[%clk 0:02:42]} 11. Nc3 {[%clk 0:02:57]}  Bf8 {[%clk 0:02:42]} 12. e4 {[%clk 0:02:54]}  dxe4 {[%clk 0:02:40]} 13. Nxe4 {[%clk 0:02:54]}  Nxe4 {[%clk 0:02:41]} 14. Bxe4 {[%clk 0:02:55]}  Nf6 {[%clk 0:02:42]} 15. Bc2 {[%clk 0:02:52]}  c5 {[%clk 0:02:35]} 16. dxc5 {[%clk 0:02:44]}  Qxd1 {[%clk 0:02:35]} 17. Raxd1 {[%clk 0:02:43]}  Bxc5 {[%clk 0:02:35]} 18. Rd2 {[%clk 0:02:35]}  Rad8 {[%clk 0:02:20]} 19. Rfd1 {[%clk 0:02:35]}  Rxd2 {[%clk 0:02:16]} 20. Rxd2 {[%clk 0:02:36]}  Kf8 {[%clk 0:02:16]} 21. Kf1 {[%clk 0:02:18]}  Be7 {[%clk 0:02:14]} 22. Ke2 {[%clk 0:02:18]}  Rd8 {[%clk 0:02:14]} 23. Rxd8+ {[%clk 0:02:17]}  Bxd8 {[%clk 0:02:15]} 24. Bd4 {[%clk 0:02:16]}  b6 {[%clk 0:02:05]} 25. b4 {[%clk 0:02:14]}  Be7 {[%clk 0:02:04]} 26. a3 {[%clk 0:02:13]}  Ke8 {[%clk 0:01:53]} 27. Kd3 {[%clk 0:02:11]}  Kd7 {[%clk 0:01:53]} 28. Ba4+ {[%clk 0:02:07]}  Kc7 {[%clk 0:01:50]} 29. g4 {[%clk 0:01:54]}  a5 {[%clk 0:01:35]} 30. c5 {[%clk 0:01:41]}  Nd5 {[%clk 0:01:34]} 31. Be5+ {[%clk 0:01:35]}  Kc8 {[%clk 0:01:25]} 32. Kc4 {[%clk 0:01:33]}  axb4 {[%clk 0:01:24]} 33. axb4 {[%clk 0:01:32]}  f6 {[%clk 0:01:18]} 34. Bg3 {[%clk 0:01:31]}  bxc5 {[%clk 0:01:14]} 35. bxc5 {[%clk 0:01:30]}  Bd8 {[%clk 0:01:14]} 36. Bc6 {[%clk 0:01:06]}  Ne7 {[%clk 0:01:08]} 37. Be4 {[%clk 0:00:59]}  Bc7 {[%clk 0:01:08]} 38. Bxh7 {[%clk 0:00:54]}  Bxg3 {[%clk 0:01:00]} 39. fxg3 {[%clk 0:00:54]}  Kc7 {[%clk 0:00:52]} 40. Be4 {[%clk 0:00:53]}  Ng8 {[%clk 0:00:42]} 41. h4 {[%clk 0:00:50]}  Nh6 {[%clk 0:00:42]} 42. Bf3 {[%clk 0:00:46]}  Nf7 {[%clk 0:00:42]} 43. Kb5 {[%clk 0:00:41]}  Ne5 {[%clk 0:00:41]} 44. Bd1 {[%clk 0:00:41]}  Nc6 {[%clk 0:00:41]} 45. Kc4 {[%clk 0:00:35]}  Ne7 {[%clk 0:00:36]} 46. Kd4 {[%clk 0:00:29]}  Kc6 {[%clk 0:00:34]} 47. Bf3+ {[%clk 0:00:28]}  Kc7 {[%clk 0:00:34]} 48. Be2 {[%clk 0:00:23]}  Kc6 {[%clk 0:00:33]} 49. Bf3+ {[%clk 0:00:23]}  Kc7 {[%clk 0:00:33]} 50. Ke3 {[%clk 0:00:23]}  Ng6 {[%clk 0:00:30]} 51. Be4 {[%clk 0:00:22]}  Ne5 {[%clk 0:00:28]} 52. Kf4 {[%clk 0:00:23]}  Nd7 {[%clk 0:00:28]} 53. c6 {[%clk 0:00:22]}  Nb8 {[%clk 0:00:09]} 54. g5 {[%clk 0:00:22]}  Kd6 {[%clk 0:00:07]} 55. gxf6 {[%clk 0:00:21]}  gxf6 {[%clk 0:00:02]} 56. h5 {[%clk 0:00:21]} 1-0